bitfinex/quotes_BTCUSD_20230111
["timestamp","ask_amount","ask_price","bid_price","bid_amount"]
[1673476232970,0.00864353,17561.0,17560.0,6.98162533]
[1673476233212,0.00864353,17561.0,17560.0,7.70228864]
[1673476233463,0.00864353,17561.0,17560.0,6.81112504]
[1673476233719,0.00864353,17561.0,17560.0,6.98162533]
[1673476234519,0.00864353,17561.0,17560.0,7.60342638]
[1673476234782,0.00864353,17561.0,17560.0,6.98162533]
[1673476235792,0.00864353,17561.0,17560.0,7.23737577]
[1673476236034,0.00864353,17561.0,17560.0,8.07838163]
[1673476236287,1e-08,17561.0,17560.0,6.98162533]
[1673476236535,1e-08,17561.0,17560.0,7.23737577]
[1673476236799,1e-08,17561.0,17560.0,8.07838759]
[1673476237045,1e-08,17561.0,17560.0,7.23737577]
[1673476237293,1e-08,17561.0,17560.0,6.98162533]
[1673476237536,1e-08,17561.0,17560.0,7.23737577]
[1673476238053,1e-08,17561.0,17560.0,8.07837839]
[1673476238810,1e-08,17561.0,17560.0,8.24887869]
[1673476239065,1e-08,17561.0,17560.0,8.81835469]
[1673476239316,1e-08,17561.0,17560.0,10.81835469]
[1673476240126,1e-08,17561.0,17560.0,10.07822311]
[1673476241180,0.00586292,17563.0,17560.0,10.07822311]
[1673476241439,0.00586292,17563.0,17561.0,2.28331607]
[1673476241685,0.00586292,17563.0,17562.0,1.01427918]
[1673476242768,0.00586292,17563.0,17562.0,1.60610861]
[1673476242984,0.00586292,17563.0,17562.0,1.74510861]
[1673476244787,0.00586292,17563.0,17562.0,2.31451961]
[1673476245047,0.00586292,17563.0,17562.0,2.69903852]
[1673476245291,0.00586292,17563.0,17562.0,2.69995026]
[1673476247062,0.00586292,17563.0,17562.0,2.13053926]
[1673476247572,0.00586292,17563.0,17562.0,2.30088427]
[1673476248842,0.00586292,17563.0,17562.0,1.77369026]
[1673476250317,0.00586292,17563.0,17562.0,2.13053926]
[1673476250826,0.00586292,17563.0,17562.0,1.77369026]
[1673476253847,0.00586292,17563.0,17562.0,2.13053926]
[1673476254101,0.00586292,17563.0,17562.0,1.77369026]
[1673476255307,0.57524092,17563.0,17562.0,1.77369026]
[1673476255813,0.00586292,17563.0,17562.0,1.38917135]
[1673476256325,0.74577632,17563.0,17562.0,1.38917135]
[1673476256591,1.01798681,17564.0,17562.0,1.38917135]
[1673476256849,0.92435095,17573.0,17562.0,0.79734192]
[1673476257100,0.06600852,17571.0,17563.0,0.92722701]
[1673476257367,0.12548173,17571.0,17564.0,1.02693607]
[1673476257620,0.12548173,17571.0,17565.0,0.93860969]
[1673476257874,0.12548173,17571.0,17564.0,0.0927227]
[1673476257875,0.12548173,17571.0,17566.0,0.94512227]
[1673476258141,0.12548173,17571.0,17567.0,0.82309305]
[1673476258395,0.42548173,17571.0,17567.0,0.82309305]
[1673476259462,0.42548173,17571.0,17567.0,0.83309305]
[1673476260486,0.36797321,17571.0,17567.0,0.83309305]
[1673476261007,0.36797321,17571.0,17568.0,0.62716149]
[1673476261274,0.42548173,17571.0,17568.0,0.86483938]
[1673476261515,0.42548173,17571.0,17568.0,0.62716149]
[1673476262515,0.42548173,17571.0,17568.0,0.63816149]
[1673476263731,0.36797321,17571.0,17568.0,0.63816149]
[1673476264738,0.36797321,17571.0,17568.0,0.63822149]
[1673476265072,0.42548173,17571.0,17568.0,0.63822149]
[1673476266324,0.36797321,17571.0,17568.0,0.63822149]
[1673476266595,0.36797321,17571.0,17568.0,0.01106]
[1673476267822,0.42548173,17571.0,17568.0,0.01106]
[1673476268095,0.36797321,17571.0,17568.0,0.01106]
[1673476268891,0.42548173,17571.0,17568.0,0.01106]
[1673476270117,1.43714006,17571.0,17568.0,0.01106]
[1673476270356,2.37963154,17571.0,17568.0,0.01106]
[1673476270862,2.20793154,17571.0,17568.0,0.01106]
[1673476271109,2.26544006,17571.0,17568.0,0.01106]
[1673476272876,2.26544006,17571.0,17568.0,0.011]
[1673476273602,2.61654558,17571.0,17568.0,0.011]
[1673476276364,2.55903706,17571.0,17568.0,0.011]
[1673476276832,2.61654558,17571.0,17568.0,0.011]
[1673476279142,1.77658725,17571.0,17568.0,0.011]
[1673476279660,0.57581678,17569.0,17568.0,0.011]
[1673476280298,0.88431678,17569.0,17567.0,6e-05]
[1673476280462,0.94379466,17569.0,17567.0,6e-05]
[1673476280742,0.3085,17568.0,17567.0,6e-05]
[1673476280985,0.88431678,17568.0,17567.0,6e-05]
[1673476281489,0.3085,17568.0,17567.0,6e-05]
[1673476281752,0.3085,17568.0,17567.0,0.00806]
[1673476282235,0.88431678,17568.0,17567.0,0.00806]
[1673476285958,0.88431678,17568.0,17567.0,0.008]
[1673476290478,1.90890678,17568.0,17567.0,0.008]
[1673476291758,1.33309,17568.0,17567.0,0.008]
[1673476293534,1.33309,17568.0,17566.0,0.04817012]
[1673476293786,1.33309,17568.0,17564.0,100.0]
[1673476293787,0.5757424,17567.0,17564.0,100.0]
[1673476294034,0.51177247,17565.0,17564.0,100.0482084]
[1673476294279,0.3,17565.0,17564.0,100.0482084]
[1673476294524,0.87765227,17565.0,17564.0,100.0]
[1673476295294,1.90241627,17565.0,17564.0,100.0]
[1673476295524,1.90241627,17565.0,17564.0,100.072]
[1673476295792,1.96188455,17565.0,17564.0,100.072]
[1673476296042,1.45025907,17565.0,17564.0,100.072]
[1673476296288,1.96188518,17565.0,17564.0,100.0]
[1673476297076,0.93712118,17565.0,17564.0,100.0]
[1673476297330,1.96188518,17565.0,17564.0,100.0]
[1673476297835,1.96888518,17565.0,17564.0,100.01]
[1673476298091,1.96188518,17565.0,17563.0,0.51528826]
[1673476298342,0.3085,17564.0,17563.0,0.51528826]
[1673476298589,1.41792174,17564.0,17563.0,0.51528826]
[1673476298812,0.991714,17564.0,17562.0,3.3006219]
[1673476299097,0.42618082,17563.0,17562.0,2.0424219]
[1673476299350,1.41793482,17563.0,17562.0,2.0424219]
[1673476299600,0.991754,17563.0,17562.0,2.0424219]
[1673476300356,1.41785287,17563.0,17562.0,2.0424219]
[1673476300860,1.47536139,17563.0,17562.0,2.0424219]
[1673476301125,1.81624205,17563.0,17562.0,2.1144219]
[1673476303397,1.64584429,17563.0,17562.0,2.1144219]
[1673476303649,1.64584012,17563.0,17562.0,2.1144219]
[1673476303867,1.98746712,17563.0,17562.0,2.1144219]
[1673476304395,2.15786905,17563.0,17562.0,2.1144219]
[1673476305399,1.81698839,17563.0,17562.0,2.1144219]
[1673476305655,2.15796957,17563.0,17562.0,2.1144219]
[1673476306402,2.10046105,17563.0,17562.0,2.1144219]
[1673476308622,1.75947987,17563.0,17562.0,2.1144219]
[1673476309651,1.81698839,17563.0,17562.0,2.1144219]
[1673476310398,2.15811449,17563.0,17562.0,2.1144219]
[1673476311960,2.10060597,17563.0,17562.0,2.1144219]
[1673476313545,1.5887253,17563.0,17562.0,3.61195719]
[1673476313791,1.5887253,17563.0,17562.0,2.68572868]
[1673476315295,1.5802253,17563.0,17562.0,2.61372868]
[1673476315562,1.40966664,17563.0,17562.0,2.61372868]
[1673476315778,1.40966664,17563.0,17562.0,2.68572868]
[1673476316773,1.40966664,17563.0,17562.0,2.08572868]
[1673476316774,1.75079274,17563.0,17562.0,2.08572868]
[1673476317029,1.5802253,17563.0,17562.0,2.68572868]
[1673476317277,1.40966932,17563.0,17562.0,2.68572868]
[1673476317527,1.5802253,17563.0,17562.0,2.68572868]
[1673476317781,1.10967094,17563.0,17562.0,2.68572868]
[1673476318037,1.40967094,17563.0,17562.0,2.68572868]
[1673476318286,1.40967094,17563.0,17562.0,2.95961237]
[1673476318533,1.5802253,17563.0,17562.0,2.68561445]
[1673476322309,1.2802253,17563.0,17562.0,2.68561445]
[1673476322562,0.76807254,17563.0,17562.0,2.68561445]
[1673476322828,0.42644554,17563.0,17562.0,2.68561445]
[1673476323076,0.17060034,17563.0,17562.0,4.09292961]
[1673476323849,0.42644554,17564.0,17562.0,4.09292961]
[1673476324129,0.42644554,17564.0,17563.0,1.13225435]
[1673476324396,0.42644554,17564.0,17563.0,1.13316605]
[1673476324666,0.42644554,17564.0,17563.0,0.77631705]
[1673476324919,0.42644554,17564.0,17563.0,1.47965482]
[1673476325174,0.42644554,17564.0,17563.0,1.83650382]
[1673476325887,0.17060034,17564.0,17563.0,1.83221298]
[1673476326137,0.17060034,17564.0,17563.0,1.83950382]
[1673476327411,0.17060034,17564.0,17563.0,1.48265482]
[1673476328442,0.17060034,17564.0,17563.0,1.48174312]
[1673476329197,0.17060034,17564.0,17563.0,0.77840535]
[1673476329460,0.17060034,17565.0,17563.0,1.74483327]
[1673476329733,0.17060034,17565.0,17564.0,1.73159702]
[1673476330242,0.17060034,17565.0,17564.0,1.28115534]
[1673476331029,0.42644554,17566.0,17564.0,1.48701021]
[1673476331278,0.42644554,17566.0,17565.0,0.77439215]
[1673476331529,0.72644554,17566.0,17565.0,0.77439215]
[1673476331782,0.42644554,17566.0,17565.0,0.77446409]
[1673476332079,0.42644554,17566.0,17565.0,0.77537568]
[1673476332325,0.43344554,17566.0,17565.0,0.77424488]
[1673476332573,0.43344554,17566.0,17564.0,1.49501021]
[1673476332817,0.51216834,17566.0,17564.0,1.48701021]
[1673476333109,0.51216834,17566.0,17565.0,0.003]
[1673476333430,0.51216834,17566.0,17565.0,0.77453057]
[1673476333431,0.81216834,17566.0,17565.0,0.77453057]
[1673476333667,0.81216834,17566.0,17564.0,1.42215534]
[1673476334177,0.81216834,17566.0,17565.0,0.77452611]
[1673476334671,0.81216834,17566.0,17564.0,1.42215534]
[1673476334932,0.81216834,17566.0,17564.0,1.28115534]
[1673476335175,0.81216834,17566.0,17565.0,0.072]
[1673476335417,0.81216834,17566.0,17565.0,0.77452611]
[1673476335659,0.81216834,17566.0,17565.0,0.76734479]
[1673476335906,0.51216834,17566.0,17565.0,1.40655537]
[1673476336148,0.341568,17566.0,17565.0,1.47855537]
[1673476336882,0.76800554,17567.0,17565.0,1.47855537]
[1673476337196,0.51216034,17567.0,17566.0,0.77423983]
[1673476337422,0.81216034,17567.0,17566.0,0.77423983]
[1673476337667,0.81216034,17567.0,17566.0,1.37423983]
[1673476337912,0.81216034,17567.0,17566.0,1.52206674]
[1673476338157,0.81216034,17567.0,17566.0,1.52506674]
[1673476339160,0.34156,17567.0,17566.0,1.52506674]
[1673476340221,0.91798654,17568.0,17566.0,2.07377831]
[1673476340490,0.57644554,17568.0,17567.0,0.9821583]
[1673476340744,0.15,17568.0,17567.0,0.98204105]
[1673476341529,0.15,17568.0,17567.0,1.67925731]
[1673476341798,0.157,17568.0,17567.0,1.68125731]
[1673476342570,0.28522184,17569.0,17567.0,2.63005398]
[1673476342571,0.1146215,17569.0,17567.0,2.63005398]
[1673476342833,0.0146215,17569.0,17568.0,1.99197122]
[1673476343341,0.0146215,17569.0,17568.0,2.3454622]
[1673476344061,0.0146215,17569.0,17568.0,2.7023112]
[1673476344558,0.0156215,17569.0,17568.0,2.8413112]
[1673476344823,0.0146215,17569.0,17568.0,2.7023112]
[1673476345052,0.0146215,17569.0,17568.0,2.8433112]
[1673476345296,0.0146215,17569.0,17568.0,2.4393058]
[1673476345552,0.0156215,17569.0,17568.0,2.5783058]
[1673476345807,0.0156215,17569.0,17568.0,2.4393058]
[1673476346821,0.0156215,17569.0,17568.0,2.5803058]
[1673476347065,0.0146215,17569.0,17568.0,2.4393058]
[1673476347317,0.0146215,17569.0,17568.0,2.5783058]
[1673476347318,0.0156215,17569.0,17568.0,2.5783058]
[1673476347562,0.0146215,17569.0,17568.0,2.4393058]
[1673476347803,0.0146215,17569.0,17568.0,2.5803058]
[1673476348056,0.0146215,17569.0,17568.0,2.4393058]
[1673476348296,0.0156215,17569.0,17568.0,2.5783058]
[1673476348532,0.0156215,17569.0,17568.0,3.29802467]
[1673476348791,0.0156215,17569.0,17568.0,3.43902467]
[1673476349277,0.0156215,17569.0,17568.0,5.43393038]
[1673476349528,0.0146215,17569.0,17568.0,5.00342751]
[1673476349767,0.0156215,17569.0,17568.0,5.01570541]
[1673476350020,0.0146215,17569.0,17568.0,5.44592141]
[1673476350278,0.0146215,17569.0,17568.0,5.58692141]
[1673476350517,0.0146215,17569.0,17568.0,5.44169459]
[1673476350768,0.001,17569.0,17568.0,5.58069459]
[1673476351297,0.01272714,17570.0,17568.0,5.44169459]
[1673476351552,0.01272714,17570.0,17569.0,1.12697654]
[1673476353331,0.01272714,17570.0,17569.0,1.19897654]
[1673476353583,0.01272714,17570.0,17569.0,1.7063676]
[1673476354093,0.01272714,17570.0,17569.0,2.2755516]
[1673476354336,0.01272714,17570.0,17569.0,4.00877866]
[1673476354577,0.01272714,17570.0,17569.0,3.43959466]
[1673476355078,0.01262563,17570.0,17569.0,3.43959466]
[1673476356055,0.01262563,17570.0,17569.0,3.57859466]
[1673476356056,0.01362563,17570.0,17569.0,3.57859466]
[1673476356421,0.01262563,17570.0,17569.0,3.43959466]
[1673476356870,0.01262563,17570.0,17569.0,4.10776009]
[1673476357128,0.01362563,17570.0,17569.0,3.96876009]
[1673476357415,0.01362563,17570.0,17569.0,3.43959466]
[1673476357662,0.01362563,17570.0,17569.0,4.25657069]
[1673476358170,0.01362563,17570.0,17569.0,3.57959466]
[1673476358666,0.01262563,17570.0,17569.0,4.1494035]
[1673476359168,0.01262563,17570.0,17569.0,4.2884035]
[1673476359169,0.01362563,17570.0,17569.0,4.2884035]
[1673476359404,0.01362563,17570.0,17569.0,3.57859466]
[1673476359651,0.01362563,17570.0,17569.0,3.6903287]
[1673476359894,0.01262563,17570.0,17569.0,2.84133989]
[1673476360148,0.01362563,17570.0,17569.0,2.98033989]
[1673476360909,0.01262563,17570.0,17569.0,2.84133989]
[1673476361148,0.01362563,17570.0,17569.0,2.98033989]
[1673476361662,0.01362563,17570.0,17569.0,2.41115589]
[1673476362392,0.01362563,17570.0,17569.0,2.98009327]
[1673476362886,0.01362563,17570.0,17569.0,3.54927727]
[1673476363384,0.01362563,17570.0,17569.0,3.00860585]
[1673476363634,0.01362563,17570.0,17569.0,2.99839879]
[1673476364154,0.01262563,17570.0,17569.0,2.85939879]
[1673476364410,0.01362563,17570.0,17569.0,3.03723612]
[1673476364930,0.01272714,17571.0,17570.0,0.02725125]
[1673476365206,0.01272714,17571.0,17570.0,1.72256434]
[1673476365451,0.01272714,17571.0,17570.0,3.35158265]
[1673476365699,0.01272714,17571.0,17570.0,3.92073365]
[1673476366223,0.01272714,17571.0,17570.0,3.01817291]
[1673476366472,0.01272714,17571.0,17570.0,2.83117291]
[1673476366724,0.01272714,17571.0,17570.0,2.26202191]
[1673476368009,0.31272714,17571.0,17570.0,2.26202191]
[1673476368763,0.31272714,17571.0,17570.0,0.89270882]
[1673476369232,0.01272714,17571.0,17570.0,1.49270882]
[1673476369510,0.01272714,17571.0,17570.0,2.62014736]
[1673476370024,0.01272714,17571.0,17570.0,2.62105868]
[1673476372059,0.01272714,17571.0,17570.0,2.82929741]
[1673476372556,0.01272714,17571.0,17570.0,2.62105868]
[1673476372821,0.01272714,17571.0,17570.0,2.26420968]
[1673476375091,0.01272714,17571.0,17570.0,3.19020968]
[1673476378373,0.01272714,17571.0,17570.0,3.75936068]
[1673476380447,0.01272714,17571.0,17570.0,3.03290311]
[1673476380684,0.01272714,17571.0,17570.0,3.60011615]
[1673476381183,0.01272714,17571.0,17570.0,3.77046116]
[1673476381950,1e-08,17571.0,17570.0,3.77046116]
[1673476383045,1e-08,17571.0,17570.0,3.60011615]
[1673476383536,1e-08,17571.0,17570.0,3.77046116]
[1673476383787,1e-08,17571.0,17570.0,4.26409798]
[1673476385788,1e-08,17571.0,17570.0,3.77046116]
[1673476386050,1e-08,17571.0,17570.0,2.6331858]
[1673476386308,1e-08,17571.0,17570.0,0.16625125]
[1673476386658,0.75515935,17571.0,17570.0,0.16625125]
[1673476386848,1.6457844,17571.0,17570.0,0.16625125]
[1673476387111,1.21968553,17571.0,17570.0,0.16625125]
[1673476387363,1.73131164,17571.0,17570.0,0.16625125]
[1673476387873,1.21968553,17571.0,17570.0,0.02725125]
[1673476388138,1.21968553,17571.0,17570.0,0.16825125]
[1673476388376,1.67380312,17571.0,17570.0,0.02725125]
[1673476388622,1.16817701,17571.0,17570.0,0.02925125]
[1673476388879,1.67380312,17571.0,17570.0,0.02725125]
[1673476389131,1.67380312,17571.0,17570.0,0.03125125]
[1673476389132,1.73131164,17571.0,17570.0,0.03125125]
[1673476389879,0.93512653,17571.0,17570.0,0.03125125]
[1673476390339,0.93512653,17571.0,17570.0,0.02725125]
[1673476390590,1.36131325,17571.0,17570.0,0.02725125]
[1673476390832,1.38929588,17571.0,17570.0,0.02925125]
[1673476391080,0.90561801,17571.0,17570.0,0.02925125]
[1673476391586,1.38929498,17571.0,17570.0,0.02925125]
[1673476391839,0.96312653,17571.0,17570.0,0.02925125]
[1673476392349,0.67856753,17571.0,17570.0,0.02925125]
[1673476392598,0.67856753,17571.0,17570.0,0.02725125]
[1673476392599,1.21968553,17571.0,17570.0,0.02725125]
[1673476392851,1.21968553,17571.0,17570.0,0.03133619]
[1673476393104,1.79542793,17571.0,17570.0,0.03133619]
[1673476393599,1.79542793,17571.0,17570.0,0.01633619]
[1673476393849,1.23568553,17571.0,17570.0,0.02733619]
[1673476394861,1.74659199,17571.0,17570.0,0.02733619]
[1673476395097,1.23568553,17571.0,17570.0,0.02733619]
[1673476396611,1.50024566,17571.0,17570.0,0.02733619]
[1673476397113,2.0222395,17571.0,17570.0,0.02733619]
[1673476397883,1.75767937,17571.0,17570.0,0.02733619]
[1673476398637,1.74631287,17571.0,17570.0,0.02733619]
[1673476399406,1.68880435,17571.0,17570.0,0.02733619]
[1673476399653,1.74631287,17571.0,17570.0,0.02733619]
[1673476400162,1.75742633,17571.0,17570.0,0.02733619]
[1673476400919,1.24679899,17571.0,17570.0,0.02733619]
[1673476402445,1.6720253,17571.0,17570.0,0.02733619]
[1673476403227,1.99618031,17571.0,17570.0,0.01633619]
[1673476403492,1.6720253,17571.0,17570.0,0.02433619]
[1673476408884,2.01220089,17571.0,17570.0,0.02433619]
[1673476409636,1.6720253,17571.0,17570.0,0.02433619]
[1673476409897,1.61451678,17571.0,17570.0,0.02433619]
[1673476410402,1.6720253,17571.0,17570.0,0.02433619]
[1673476411170,1.72767477,17571.0,17570.0,0.02433619]
[1673476411670,1.55759962,17571.0,17570.0,0.02433619]
[1673476411925,1.72767477,17571.0,17570.0,0.02433619]
[1673476412427,1.67016625,17571.0,17570.0,0.02433619]
[1673476412687,1.71660154,17571.0,17570.0,0.02433619]
[1673476413676,2.00116054,17571.0,17570.0,0.02433619]
[1673476413944,1.66091184,17571.0,17570.0,0.02433619]
[1673476415211,1.66091184,17571.0,17570.0,0.02423771]
[1673476415460,1.37635284,17571.0,17570.0,0.02423771]
[1673476415704,2.0012093,17571.0,17570.0,0.02423771]
[1673476415960,1.7166503,17571.0,17570.0,0.02423771]
[1673476416694,1.37635284,17571.0,17570.0,0.02423771]
[1673476417195,1.71673818,17571.0,17570.0,0.02423771]
[1673476417446,1.37635284,17571.0,17570.0,0.02423771]
[1673476417747,1.66091184,17571.0,17570.0,0.02423771]
[1673476417988,1.23568553,17571.0,17570.0,0.02423771]
[1673476419211,0.95112653,17571.0,17570.0,0.02423771]
[1673476420950,1.37682926,17571.0,17570.0,0.008]
[1673476421233,0.95112653,17571.0,17570.0,0.008]
[1673476421740,1.6613864,17571.0,17570.0,0.008]
[1673476422071,1.37682663,17571.0,17570.0,0.008]
[1673476422276,1.66138563,17571.0,17570.0,0.008]
[1673476422525,1.23568553,17571.0,17570.0,0.008]
[1673476423031,0.95112653,17571.0,17570.0,0.008]
[1673476423521,1.23568553,17571.0,17570.0,0.008]
[1673476424608,1.74631287,17571.0,17570.0,0.008]
[1673476426818,1.23568553,17571.0,17570.0,0.008]
[1673476427575,0.95112653,17571.0,17570.0,0.008]
[1673476428077,1.23568553,17571.0,17570.0,0.008]
[1673476429343,1.29515561,17571.0,17570.0,0.008]
[1673476429601,2.02889801,17571.0,17570.0,0.008]
[1673476430899,2.01289801,17571.0,17569.0,0.6]
[1673476431152,0.0085,17570.0,17569.0,0.6]
[1673476431387,0.862225,17570.0,17569.0,0.6]
[1673476431635,1.162225,17570.0,17569.0,0.6]
[1673476432372,1.162225,17570.0,17569.0,0.608]
[1673476432373,1.23573352,17570.0,17569.0,0.608]
[1673476433090,1.21973352,17570.0,17569.0,0.6]
[1673476433356,1.23573352,17570.0,17569.0,0.611]
[1673476433604,1.79547592,17570.0,17569.0,0.6]
[1673476433858,1.81147592,17570.0,17569.0,0.608]
[1673476434611,1.96947592,17570.0,17569.0,0.608]
[1673476434871,1.95347592,17570.0,17569.0,0.6]
[1673476435117,1.96947592,17570.0,17569.0,0.611]
[1673476436133,1.39373352,17570.0,17569.0,0.611]
[1673476436375,1.39343352,17570.0,17569.0,0.611]
[1673476436625,1.96917592,17570.0,17569.0,0.611]
[1673476438310,1.96917592,17570.0,17569.0,0.61088874]
[1673476441342,1.81147592,17570.0,17569.0,0.61088874]
[1673476441592,1.96947592,17570.0,17569.0,0.61088874]
[1673476442039,2.62727292,17570.0,17569.0,0.61088874]
[1673476443297,2.62727292,17570.0,17569.0,0.011]
[1673476443548,2.62727292,17570.0,17569.0,0.61088874]
[1673476444579,2.46927292,17570.0,17569.0,0.61088874]
[1673476454401,1.89353052,17570.0,17569.0,0.61088874]
[1673476455159,2.46927292,17570.0,17569.0,0.61088874]
[1673476455422,1.89353052,17570.0,17569.0,0.61088874]
[1673476455671,2.46927292,17570.0,17569.0,0.61088874]
[1673476455883,1.89353052,17570.0,17569.0,0.61088874]
[1673476456636,1.836022,17570.0,17569.0,0.61088874]
[1673476456890,2.4117644,17570.0,17569.0,0.61088874]
[1673476457379,1.89353052,17570.0,17569.0,0.61088874]
[1673476458359,2.46927292,17570.0,17569.0,0.61088874]
[1673476460097,1.89353052,17570.0,17569.0,0.61088874]
[1673476460593,2.46927292,17570.0,17569.0,0.61081535]
[1673476464798,2.05073052,17570.0,17569.0,0.61081535]
[1673476465055,2.19943339,17570.0,17569.0,0.61081535]
[1673476465569,2.19943339,17570.0,17567.0,1.45446435]
[1673476465818,0.8757257,17569.0,17567.0,1.45446435]
[1673476466072,0.68895003,17568.0,17567.0,1.45446435]
[1673476466331,2.18489055,17568.0,17567.0,1.45446435]
[1673476466583,2.18489055,17568.0,17567.0,1.4065]
[1673476468122,2.18489055,17568.0,17567.0,1.4175]
[1673476468375,2.18489055,17568.0,17567.0,1.4065]
[1673476468626,2.21189055,17568.0,17567.0,1.4155]
[1673476472520,2.73010773,17568.0,17567.0,1.4155]
[1673476472834,2.78761625,17568.0,17567.0,1.4155]
[1673476476378,2.10716622,17568.0,17567.0,1.4155]
[1673476477120,2.10716622,17568.0,17567.0,0.009]
[1673476483273,1.53144052,17568.0,17567.0,0.009]
[1673476484023,2.10716622,17568.0,17567.0,0.009]
[1673476485233,1.53144052,17568.0,17567.0,0.009]
[1673476487672,1.53144052,17568.0,17567.0,0.00888209]
[1673476489634,2.10716622,17568.0,17567.0,0.00888209]
[1673476490593,2.26456622,17568.0,17567.0,0.00888209]
[1673476491346,2.26516622,17568.0,17567.0,0.00888209]
[1673476494288,1.68944052,17568.0,17564.0,1.49004369]
[1673476494563,0.51128886,17565.0,17564.0,0.05594369]
[1673476494808,1.65841286,17565.0,17564.0,0.05594369]
[1673476495062,1.56411699,17565.0,17564.0,0.00610855]
[1673476495311,2.07525942,17565.0,17564.0,0.00610855]
[1673476495564,2.07525942,17565.0,17564.0,0.01810855]
[1673476496807,2.07525942,17565.0,17564.0,0.00610855]
[1673476497055,2.21125942,17565.0,17564.0,0.00810855]
[1673476497798,2.07525942,17565.0,17564.0,0.00610855]
[1673476498292,2.21025942,17565.0,17564.0,0.00610855]
[1673476498531,2.0177509,17565.0,17564.0,0.00610855]
[1673476498775,2.20525942,17565.0,17564.0,0.00610855]
[1673476499797,1.69411699,17565.0,17564.0,0.00610855]
[1673476500045,2.20513065,17565.0,17564.0,0.00610855]
[1673476500297,2.20512975,17565.0,17564.0,0.00610855]
[1673476501801,2.20342875,17565.0,17564.0,0.00610855]
[1673476502802,2.20342875,17565.0,17564.0,0.00466755]
[1673476504611,2.14592023,17565.0,17564.0,0.00466755]
[1673476504863,0.983968,17565.0,17564.0,0.00466755]
[1673476505874,0.983968,17565.0,17564.0,0.06216629]
[1673476506382,1.71853724,17565.0,17564.0,0.65449408]
[1673476507700,2.05941792,17565.0,17564.0,0.65449408]
[1673476508024,1.71853724,17565.0,17564.0,0.65449408]
[1673476508197,2.05941244,17565.0,17564.0,0.65449408]
[1673476509211,2.05091244,17565.0,17564.0,0.65449408]
[1673476510219,1.46625644,17565.0,17564.0,1.31677492]
[1673476510466,0.55615782,17565.0,17564.0,1.82228768]
[1673476510713,0.30046532,17565.0,17564.0,1.82228768]
[1673476511216,0.30046532,17565.0,17564.0,1.67362392]
[1673476511465,0.13,17565.0,17564.0,1.02379739]
[1673476511722,0.13,17565.0,17564.0,1.75066782]
[1673476511974,0.17046532,17565.0,17564.0,1.75066782]
[1673476512218,0.42615782,17566.0,17564.0,1.75066782]
[1673476512469,0.42615782,17566.0,17565.0,1.18010071]
[1673476512711,0.72615782,17566.0,17565.0,1.18010071]
[1673476512986,0.72615782,17566.0,17565.0,0.82325171]
[1673476513245,0.72615782,17566.0,17565.0,1.18010071]
[1673476513496,0.42615782,17566.0,17565.0,1.18010071]
[1673476513746,0.17046532,17566.0,17565.0,1.18010071]
[1673476513988,0.29446532,17566.0,17565.0,1.41258596]
[1673476514751,0.29446532,17566.0,17565.0,1.18610071]
[1673476515001,0.29446532,17566.0,17565.0,1.18010071]
[1673476515002,0.17046532,17566.0,17565.0,1.18010071]
[1673476515494,0.25546532,17566.0,17565.0,1.18510071]
[1673476515742,0.25546532,17566.0,17565.0,1.90835983]
[1673476516753,0.55546532,17566.0,17565.0,1.90835983]
[1673476517730,0.84010532,17566.0,17565.0,1.90835983]
[1673476517972,0.84010532,17566.0,17565.0,1.90788251]
[1673476518210,0.84010532,17566.0,17565.0,1.24730812]
[1673476519690,0.54010532,17566.0,17565.0,1.24730812]
[1673476519928,0.84010532,17566.0,17565.0,1.24730812]
[1673476520923,0.54010532,17566.0,17565.0,1.24730812]
[1673476521174,0.66964,17566.0,17565.0,1.24730812]
[1673476521653,0.95428,17566.0,17565.0,1.24730812]
[1673476521911,1.12474532,17566.0,17565.0,0.89045912]
[1673476525340,0.95428,17566.0,17565.0,0.89045912]
[1673476525603,1.12474532,17566.0,17565.0,0.89045912]
[1673476525858,0.95428,17566.0,17565.0,0.89045912]
[1673476526103,1.12474532,17566.0,17565.0,0.89045912]
[1673476526366,1.12474532,17566.0,17565.0,0.1672]
[1673476527116,1.10468071,17566.0,17565.0,0.8553343]
[1673476527364,0.63421539,17566.0,17565.0,0.8553343]
[1673476527627,0.93421539,17566.0,17565.0,0.8553343]
[1673476527860,0.63421539,17566.0,17565.0,0.8553343]
[1673476528109,0.93421539,17566.0,17565.0,0.8553343]
[1673476528368,0.63421539,17566.0,17565.0,0.8553343]
[1673476530396,0.63421539,17566.0,17565.0,0.75777968]
[1673476531129,0.63421539,17566.0,17565.0,0.75869127]
[1673476531869,0.93421539,17566.0,17565.0,0.75777968]
[1673476532366,0.63421539,17566.0,17565.0,0.75777968]
[1673476532635,0.63421539,17566.0,17565.0,0.79687501]
[1673476536352,0.93421539,17566.0,17565.0,0.79687501]
[1673476536934,0.63421539,17566.0,17565.0,0.79687501]
[1673476537892,0.63421539,17566.0,17565.0,1.15372401]
[1673476538433,0.93421539,17566.0,17565.0,0.79687501]
[1673476538696,0.93421539,17566.0,17565.0,0.20629533]
[1673476538939,1.10468071,17566.0,17565.0,0.20629533]
[1673476540653,0.93421539,17566.0,17565.0,0.20629533]
[1673476540899,1.10468071,17566.0,17565.0,0.20629533]
[1673476541142,1.10468071,17566.0,17565.0,0.81493585]
[1673476542648,1.36037321,17566.0,17565.0,0.81493585]
[1673476544633,1.53078309,17566.0,17565.0,0.20629533]
[1673476544898,1.81542309,17566.0,17565.0,0.20629533]
[1673476545390,1.53078309,17566.0,17565.0,0.20629533]
[1673476546383,1.70135258,17566.0,17565.0,0.20629533]
[1673476546630,1.53078309,17566.0,17565.0,0.20629533]
[1673476547122,1.23078309,17566.0,17565.0,0.20629533]
[1673476547779,1.53078309,17566.0,17565.0,0.20629533]
[1673476548039,1.23078309,17566.0,17565.0,0.20629533]
[1673476548462,1.53078309,17566.0,17565.0,0.20629533]
[1673476548725,1.70115983,17566.0,17565.0,0.20629533]
[1673476548982,1.70115983,17566.0,17565.0,0.20621278]
[1673476550449,1.36028463,17566.0,17565.0,0.20621278]
[1673476550695,1.36028463,17566.0,17565.0,0.56306178]
[1673476551455,1.36028463,17566.0,17565.0,0.20621278]
[1673476551702,1.36028463,17566.0,17565.0,0.56306178]
[1673476552219,1.70181235,17566.0,17565.0,0.56306178]
[1673476552441,1.70181235,17566.0,17565.0,0.20621278]
[1673476552936,1.70181235,17566.0,17565.0,0.20712437]
[1673476553196,1.36028463,17566.0,17565.0,0.20712437]
[1673476553783,1.36028463,17566.0,17565.0,0.20621278]
[1673476555096,1.36028463,17566.0,17565.0,0.04409533]
[1673476555578,1.64492463,17566.0,17565.0,0.04409533]
[1673476555846,1.36028463,17566.0,17565.0,0.04409533]
[1673476556101,0.49100463,17566.0,17565.0,1.49930368]
[1673476556352,0.49100463,17566.0,17565.0,2.01914859]